[Event "SM-blixten 2025"]
[Site "Uppsala, Sweden"]
[Date "2025.07.03"]
[Round "11.9"]
[White "Gruvaeus, Curt"]
[Black "Odell Johansson, Leo"]
[Result "1-0"]
[TimeControl "3 min + 2 sec increment starting from move 1"]
[WhiteTitle "FM"]
[WhiteElo "2156"]
[BlackElo "1991"]

1. Nf3 {[%clk 00:03:01]} {[%emt 00:00:02]} Nf6 {[%clk 00:03:03]} {[%emt
00:00:01]} 2. c4 {[%clk 00:03:02]} {[%emt 00:00:02]} e6 {[%clk 00:03:03]}
{[%emt 00:00:02]} 3. g3 {[%clk 00:03:02]} {[%emt 00:00:01]} d5 {[%clk
00:03:04]} 4. Bg2 {[%clk 00:03:04]} {[%emt 00:00:01]} Be7 {[%clk 00:03:05]}
{[%emt 00:00:02]} 5. O-O {[%clk 00:03:04]} {[%emt 00:00:01]} O-O {[%clk
00:03:03]} {[%emt 00:00:04]} 6. Qc2 {[%clk 00:03:04]} {[%emt 00:00:02]} b6
{[%clk 00:02:44]} {[%emt 00:00:21]} 7. d3 {[%clk 00:03:01]} {[%emt 00:00:04]}
Bb7 {[%clk 00:02:45]} {[%emt 00:00:02]} 8. Nc3 {[%clk 00:02:53]} {[%emt
00:00:09]} c5 {[%clk 00:02:39]} {[%emt 00:00:08]} 9. e4 {[%clk 00:02:42]}
{[%emt 00:00:13]} dxe4 {[%clk 00:02:25]} {[%emt 00:00:17]} 10. dxe4 {[%clk
00:02:42]} {[%emt 00:00:01]} Nc6 {[%clk 00:02:16]} {[%emt 00:00:12]} 11. Rd1
{[%clk 00:02:43]} Nd4 {[%clk 00:01:40]} {[%emt 00:00:38]} 12. Nxd4 {[%clk
00:02:43]} {[%emt 00:00:02]} cxd4 {[%clk 00:01:41]} {[%emt 00:00:01]} 13. e5
{[%clk 00:02:44]} Nd5 {[%clk 00:00:56]} {[%emt 00:00:48]} 14. cxd5 {[%clk
00:02:27]} {[%emt 00:00:18]} dxc3 {[%clk 00:00:49]} {[%emt 00:00:09]} 15. d6
{[%clk 00:02:28]} {[%emt 00:00:01]} Bxg2 {[%clk 00:00:41]} {[%emt 00:00:11]} 16.
dxe7 {[%clk 00:02:22]} {[%emt 00:00:07]} Qxe7 {[%clk 00:00:41]} {[%emt
00:00:02]} 17. Kxg2 {[%clk 00:02:22]} {[%emt 00:00:01]} Rac8 {[%clk 00:00:37]}
{[%emt 00:00:07]} 18. bxc3 {[%clk 00:02:17]} {[%emt 00:00:07]} Qc5 {[%clk
00:00:37]} {[%emt 00:00:02]} 19. Qe4 {[%clk 00:01:54]} {[%emt 00:00:23]} Qxc3
{[%clk 00:00:27]} {[%emt 00:00:15]} 20. Be3 {[%clk 00:01:53]} Qa5 {[%clk
00:00:20]} {[%emt 00:00:09]} 21. Rd7 {[%clk 00:01:43]} {[%emt 00:00:12]} h6
{[%clk 00:00:18]} {[%emt 00:00:05]} 22. a4 {[%clk 00:01:30]} {[%emt 00:00:14]}
a6 {[%clk 00:00:09]} {[%emt 00:00:12]} 23. Rad1 {[%clk 00:01:26]} {[%emt
00:00:06]} b5 {[%clk 00:00:08]} {[%emt 00:00:03]} 24. axb5 {[%clk 00:01:18]}
{[%emt 00:00:09]} Qxb5 {[%clk 00:00:09]} {[%emt 00:00:02]} 25. Rb7 {[%clk
00:01:15]} {[%emt 00:00:04]} Qc6 {[%clk 00:00:09]} {[%emt 00:00:03]} 26. Qxc6
{[%clk 00:01:13]} {[%emt 00:00:04]} Rxc6 {[%clk 00:00:11]} 27. Rd6 {[%clk
00:01:11]} {[%emt 00:00:02]} Rc2 {[%clk 00:00:05]} {[%emt 00:00:09]} 28. Rxa6
{[%clk 00:01:11]} {[%emt 00:00:02]} f6 {[%clk 00:00:06]} 29. Raa7 {[%clk
00:01:06]} {[%emt 00:00:06]} 1-0

[Event "SM-blixten 2025"]
[Site "Uppsala, Sweden"]
[Date "2025.07.03"]
[Round "2.4"]
[White "Ljung, Harald"]
[Black "Pantzar, Milton"]
[Result "0-1"]
[TimeControl "3 min + 2 sec increment starting from move 1"]
[BlackTitle "IM"]
[WhiteElo "2194"]
[BlackElo "2444"]

1. d4 {[%clk 00:03:03]} Nf6 {[%clk 00:03:02]} {[%emt 00:00:02]} 2. Nf3 {[%clk
00:03:04]} e6 {[%clk 00:03:01]} {[%emt 00:00:05]} 3. c4 {[%clk 00:03:04]}
{[%emt 00:00:01]} b6 {[%clk 00:03:01]} {[%emt 00:00:03]} 4. Nc3 {[%clk
00:03:05]} {[%emt 00:00:01]} Bb7 {[%clk 00:02:55]} {[%emt 00:00:07]} 5. e3
{[%clk 00:03:05]} {[%emt 00:00:02]} Bb4 {[%clk 00:02:49]} {[%emt 00:00:08]} 6.
Bd2 {[%clk 00:03:04]} {[%emt 00:00:04]} O-O {[%clk 00:02:48]} {[%emt 00:00:03]}
7. Bd3 {[%clk 00:03:02]} {[%emt 00:00:02]} d5 {[%clk 00:02:45]} {[%emt
00:00:06]} 8. O-O {[%clk 00:03:01]} {[%emt 00:00:02]} a6 {[%clk 00:02:33]}
{[%emt 00:00:15]} 9. a3 {[%clk 00:03:00]} {[%emt 00:00:04]} Bd6 {[%clk
00:02:32]} {[%emt 00:00:02]} 10. b4 {[%clk 00:02:57]} {[%emt 00:00:06]} dxc4 11.
Bxc4 {[%clk 00:02:58]} Nbd7 {[%clk 00:02:30]} {[%emt 00:00:03]} 12. Rc1 {[%clk
00:02:58]} {[%emt 00:00:02]} e5 {[%clk 00:02:23]} {[%emt 00:00:10]} 13. Qb3
{[%clk 00:02:15]} {[%emt 00:00:44]} exd4 {[%clk 00:02:09]} {[%emt 00:00:16]} 14.
Nxd4 {[%clk 00:02:00]} {[%emt 00:00:17]} Ng4 {[%clk 00:01:26]} {[%emt
00:00:46]} 15. f4 {[%clk 00:01:06]} {[%emt 00:00:56]} Qh4 {[%clk 00:01:10]}
{[%emt 00:00:17]} 16. h3 {[%clk 00:00:56]} {[%emt 00:00:12]} Qg3 {[%clk
00:01:06]} {[%emt 00:00:06]} 17. Rf3 {[%clk 00:00:15]} {[%emt 00:00:44]} Qh2+
{[%clk 00:00:49]} {[%emt 00:00:18]} 18. Kf1 {[%clk 00:00:16]} Qh1+ {[%clk
00:00:50]} {[%emt 00:00:02]} 19. Ke2 {[%clk 00:00:18]} Qxg2+ {[%clk 00:00:50]}
{[%emt 00:00:02]} 20. Kd3 {[%clk 00:00:19]} {[%emt 00:00:01]} Bxf3 {[%clk
00:00:45]} {[%emt 00:00:08]} 21. hxg4 {[%clk 00:00:20]} Rad8 {[%clk 00:00:20]}
{[%emt 00:00:27]} 22. Nxf3 Qxf3 {[%clk 00:00:21]} 23. Bd5 {[%clk 00:00:14]}
{[%emt 00:00:01]} Qxg4 {[%clk 00:00:20]} {[%emt 00:00:02]} 24. Kc2 {[%clk
00:00:10]} {[%emt 00:00:07]} Nf6 {[%clk 00:00:20]} {[%emt 00:00:01]} 25. Bc6
{[%clk 00:00:08]} {[%emt 00:00:04]} a5 {[%clk 00:00:17]} {[%emt 00:00:05]} 26.
b5 {[%clk 00:00:07]} {[%emt 00:00:03]} h5 {[%clk 00:00:15]} {[%emt 00:00:04]}
27. Kb1 {[%clk 00:00:08]} {[%emt 00:00:01]} Qf5+ {[%clk 00:00:15]} {[%emt
00:00:02]} 28. Ka1 {[%clk 00:00:07]} {[%emt 00:00:03]} Bxa3 {[%clk 00:00:13]}
{[%emt 00:00:05]} 29. e4 {[%clk 00:00:07]} {[%emt 00:00:01]} Qc5 {[%clk
00:00:09]} {[%emt 00:00:06]} 30. e5 {[%clk 00:00:07]} {[%emt 00:00:02]} Rxd2
{[%clk 00:00:08]} {[%emt 00:00:03]} 31. exf6 {[%clk 00:00:08]} {[%emt
00:00:01]} Bxc1 {[%clk 00:00:07]} {[%emt 00:00:03]} 32. fxg7 {[%clk 00:00:08]}
{[%emt 00:00:02]} Kxg7 {[%clk 00:00:06]} {[%emt 00:00:03]} 33. Ne4 {[%clk
00:00:09]} {[%emt 00:00:01]} Qd4+ {[%clk 00:00:05]} {[%emt 00:00:03]} 34. Kb1
{[%clk 00:00:09]} {[%emt 00:00:02]} Rd3 {[%clk 00:00:05]} {[%emt 00:00:02]} 35.
Qc2 {[%clk 00:00:09]} {[%emt 00:00:03]} Bd2 {[%clk 00:00:03]} {[%emt 00:00:03]}
36. f5 {[%clk 00:00:08]} {[%emt 00:00:03]} Qb4+ {[%clk 00:00:04]} {[%emt
00:00:02]} 0-1

[Event "SM-blixten 2025"]
[Site "Uppsala, Sweden"]
[Date "2025.07.03"]
[Round "3.10"]
[White "Pettersson, Tobias"]
[Black "Nilsson, Joakim"]
[Result "0-1"]
[TimeControl "3 min + 2 sec increment starting from move 1"]
[BlackTitle "FM"]
[WhiteElo "2076"]
[BlackElo "2208"]

1. d4 {[%clk 00:03:02]} d5 {[%clk 00:03:01]} {[%emt 00:00:04]} 2. Nf3 {[%clk
00:03:01]} {[%emt 00:00:03]} c5 {[%clk 00:02:58]} {[%emt 00:00:05]} 3. c4
{[%clk 00:02:47]} {[%emt 00:00:16]} cxd4 {[%clk 00:02:53]} {[%emt 00:00:08]} 4.
cxd5 {[%clk 00:02:42]} {[%emt 00:00:06]} Nf6 {[%clk 00:02:50]} {[%emt
00:00:04]} 5. Nxd4 {[%clk 00:02:37]} {[%emt 00:00:08]} Nxd5 {[%clk 00:02:44]}
{[%emt 00:00:08]} 6. e4 {[%clk 00:02:17]} {[%emt 00:00:22]} Nb4 {[%clk
00:02:39]} {[%emt 00:00:07]} 7. Qa4+ {[%clk 00:02:04]} {[%emt 00:00:15]} N8c6
{[%clk 00:02:29]} {[%emt 00:00:12]} 8. Nxc6 {[%clk 00:02:02]} {[%emt 00:00:04]}
Nxc6 {[%clk 00:02:28]} {[%emt 00:00:03]} 9. Nc3 {[%clk 00:01:58]} {[%emt
00:00:05]} Bd7 {[%clk 00:02:29]} {[%emt 00:00:03]} 10. Be3 {[%clk 00:01:51]}
{[%emt 00:00:08]} e6 {[%clk 00:02:27]} {[%emt 00:00:04]} 11. Be2 {[%clk
00:01:49]} {[%emt 00:00:03]} Bb4 {[%clk 00:02:20]} {[%emt 00:00:10]} 12. O-O
{[%clk 00:01:44]} {[%emt 00:00:06]} O-O {[%clk 00:02:20]} {[%emt 00:00:02]} 13.
Rfd1 {[%clk 00:01:44]} {[%emt 00:00:03]} Qe7 {[%clk 00:02:18]} {[%emt
00:00:04]} 14. Rac1 {[%clk 00:01:41]} {[%emt 00:00:05]} Nd4 {[%clk 00:01:47]}
{[%emt 00:00:33]} 15. Bb5 {[%clk 00:00:53]} {[%emt 00:00:50]} Bxb5 {[%clk
00:01:45]} {[%emt 00:00:04]} 16. Nxb5 {[%clk 00:00:53]} {[%emt 00:00:01]} Ne2+
{[%clk 00:01:46]} {[%emt 00:00:02]} 17. Kh1 {[%clk 00:00:51]} {[%emt 00:00:04]}
Nxc1 {[%clk 00:01:46]} {[%emt 00:00:02]} 18. Rxc1 {[%clk 00:00:51]} {[%emt
00:00:02]} a6 {[%clk 00:01:42]} {[%emt 00:00:07]} 19. Nd4 {[%clk 00:00:49]}
{[%emt 00:00:03]} Rac8 {[%clk 00:01:42]} {[%emt 00:00:02]} 20. Qd1 {[%clk
00:00:43]} {[%emt 00:00:08]} Rfd8 {[%clk 00:01:38]} {[%emt 00:00:06]} 21. Rxc8
{[%clk 00:00:34]} {[%emt 00:00:11]} Rxc8 {[%clk 00:01:40]} {[%emt 00:00:01]} 22.
e5 {[%clk 00:00:19]} {[%emt 00:00:16]} Bc5 {[%clk 00:01:39]} {[%emt 00:00:03]}
23. h3 {[%clk 00:00:11]} {[%emt 00:00:10]} Rd8 {[%clk 00:01:34]} {[%emt
00:00:07]} 24. Qg4 {[%clk 00:00:10]} {[%emt 00:00:03]} Bxd4 {[%clk 00:01:30]}
{[%emt 00:00:06]} 25. Bxd4 {[%clk 00:00:10]} Qb4 {[%clk 00:01:31]} {[%emt
00:00:02]} 0-1

[Event "SM-blixten 2025"]
[Site "Uppsala, Sweden"]
[Date "2025.07.03"]
[Round "5.6"]
[White "Jonsson, Mikael"]
[Black "Olund, Joar"]
[Result "1-0"]
[TimeControl "3 min + 2 sec increment starting from move 1"]
[BlackTitle "FM"]
[WhiteElo "2204"]
[BlackElo "2369"]

1. e4 {[%clk 00:03:02]} {[%emt 00:00:01]} e5 {[%clk 00:03:04]} {[%emt
00:00:01]} 2. Nf3 {[%clk 00:03:02]} {[%emt 00:00:01]} Nc6 {[%clk 00:03:05]}
{[%emt 00:00:02]} 3. Bb5 {[%clk 00:03:02]} {[%emt 00:00:01]} Nf6 {[%clk
00:03:06]} {[%emt 00:00:01]} 4. O-O {[%clk 00:03:01]} {[%emt 00:00:03]} Nxe4
{[%clk 00:03:07]} {[%emt 00:00:02]} 5. d4 {[%clk 00:03:01]} {[%emt 00:00:01]}
Nd6 {[%clk 00:03:08]} 6. Bxc6 {[%clk 00:03:01]} {[%emt 00:00:02]} dxc6 {[%clk
00:03:09]} 7. dxe5 {[%clk 00:03:02]} {[%emt 00:00:01]} Nf5 {[%clk 00:03:10]} 8.
Qxd8+ {[%clk 00:03:02]} {[%emt 00:00:02]} Kxd8 {[%clk 00:03:11]} {[%emt
00:00:01]} 9. Nc3 {[%clk 00:03:03]} {[%emt 00:00:01]} h6 {[%clk 00:03:04]}
{[%emt 00:00:10]} 10. Bd2 {[%clk 00:03:02]} {[%emt 00:00:03]} Be6 {[%clk
00:02:53]} {[%emt 00:00:12]} 11. h3 {[%clk 00:02:59]} {[%emt 00:00:04]} c5
{[%clk 00:02:46]} {[%emt 00:00:09]} 12. Rad1 {[%clk 00:02:54]} {[%emt
00:00:08]} Kc8 {[%clk 00:02:47]} {[%emt 00:00:02]} 13. Bf4 {[%clk 00:02:15]}
{[%emt 00:00:40]} b6 {[%clk 00:02:34]} {[%emt 00:00:15]} 14. Nd5 {[%clk
00:02:13]} {[%emt 00:00:04]} Kb7 {[%clk 00:02:34]} {[%emt 00:00:02]} 15. Rd2
{[%clk 00:01:54]} {[%emt 00:00:21]} g5 {[%clk 00:02:17]} {[%emt 00:00:19]} 16.
Bh2 {[%clk 00:01:52]} {[%emt 00:00:03]} Bg7 {[%clk 00:02:18]} {[%emt 00:00:02]}
17. g4 {[%clk 00:01:37]} {[%emt 00:00:17]} Nd4 {[%clk 00:01:20]} {[%emt
00:01:00]} 18. Nxd4 {[%clk 00:01:37]} {[%emt 00:00:02]} cxd4 {[%clk 00:01:20]}
{[%emt 00:00:01]} 19. Rxd4 {[%clk 00:01:32]} {[%emt 00:00:09]} h5 {[%clk
00:01:00]} {[%emt 00:00:22]} 20. Bg3 {[%clk 00:01:02]} {[%emt 00:00:31]} a5
{[%clk 00:00:29]} {[%emt 00:00:34]} 21. a4 {[%clk 00:00:52]} {[%emt 00:00:12]}
h4 {[%clk 00:00:11]} {[%emt 00:00:20]} 22. Bh2 {[%clk 00:00:52]} {[%emt
00:00:01]} Rhe8 {[%clk 00:00:11]} {[%emt 00:00:02]} 23. Rfd1 {[%clk 00:00:48]}
{[%emt 00:00:07]} Bxd5 {[%clk 00:00:08]} {[%emt 00:00:05]} 24. Rxd5 {[%clk
00:00:48]} {[%emt 00:00:01]} Re7 {[%clk 00:00:09]} 25. b3 {[%clk 00:00:32]}
{[%emt 00:00:18]} Rae8 {[%clk 00:00:10]} {[%emt 00:00:01]} 26. e6 {[%clk
00:00:32]} {[%emt 00:00:02]} Rxe6 {[%clk 00:00:10]} {[%emt 00:00:02]} 27. Rxg5
{[%clk 00:00:33]} {[%emt 00:00:02]} Bc3 {[%clk 00:00:08]} {[%emt 00:00:03]} 28.
Rd7 {[%clk 00:00:29]} {[%emt 00:00:06]} R8e7 {[%clk 00:00:05]} {[%emt
00:00:06]} 29. Rgd5 {[%clk 00:00:24]} {[%emt 00:00:07]} Bb4 {[%clk 00:00:05]}
{[%emt 00:00:02]} 30. Bxc7 {[%clk 00:00:21]} {[%emt 00:00:04]} Rxd7 {[%clk
00:00:06]} {[%emt 00:00:02]} 31. Rxd7 {[%clk 00:00:22]} {[%emt 00:00:01]} Kc6
{[%clk 00:00:06]} 32. Rxf7 {[%clk 00:00:23]} {[%emt 00:00:01]} Re2 {[%clk
00:00:05]} {[%emt 00:00:04]} 33. Bd8 {[%clk 00:00:23]} {[%emt 00:00:01]} Bd6
{[%clk 00:00:04]} {[%emt 00:00:04]} 34. Bxh4 {[%clk 00:00:20]} {[%emt
00:00:05]} Rxc2 {[%clk 00:00:04]} 35. Rf3 {[%clk 00:00:20]} {[%emt 00:00:01]}
Kd5 {[%clk 00:00:04]} {[%emt 00:00:03]} 36. Kg2 {[%clk 00:00:21]} {[%emt
00:00:01]} Bc5 {[%clk 00:00:05]} 37. Bg3 {[%clk 00:00:21]} {[%emt 00:00:03]}
Ke4 {[%clk 00:00:06]} {[%emt 00:00:01]} 38. h4 {[%clk 00:00:21]} {[%emt
00:00:02]} Bd4 {[%clk 00:00:07]} {[%emt 00:00:01]} 39. h5 {[%clk 00:00:21]}
{[%emt 00:00:03]} Rc3 {[%clk 00:00:05]} {[%emt 00:00:03]} 40. Rxc3 {[%clk
00:00:21]} {[%emt 00:00:03]} Bxc3 {[%emt 00:00:01]} 41. f3+ {[%clk 00:00:18]}
{[%emt 00:00:04]} Kd3 {[%clk 00:00:08]} 42. Bc7 {[%clk 00:00:19]} {[%emt
00:00:02]} Kc2 {[%clk 00:00:08]} {[%emt 00:00:01]} 43. Bxb6 {[%clk 00:00:20]}
{[%emt 00:00:02]} Kxb3 {[%clk 00:00:09]} {[%emt 00:00:01]} 44. f4 {[%clk
00:00:19]} {[%emt 00:00:02]} Kxa4 {[%clk 00:00:10]} {[%emt 00:00:01]} 45. g5
{[%clk 00:00:20]} Kb5 {[%clk 00:00:11]} {[%emt 00:00:02]} 46. Bd8 {[%clk
00:00:18]} {[%emt 00:00:03]} a4 {[%clk 00:00:12]} {[%emt 00:00:01]} 47. Be7
{[%clk 00:00:19]} Kc4 {[%clk 00:00:12]} {[%emt 00:00:02]} 48. h6 {[%clk
00:00:19]} {[%emt 00:00:02]} Kd5 {[%clk 00:00:09]} {[%emt 00:00:05]} 49. Kf3
{[%clk 00:00:19]} {[%emt 00:00:02]} Ke6 {[%clk 00:00:10]} 50. Ba3 {[%clk
00:00:20]} {[%emt 00:00:02]} Kf5 {[%clk 00:00:11]} {[%emt 00:00:01]} 51. h7
{[%clk 00:00:11]} {[%emt 00:00:11]} Kg6 {[%clk 00:00:12]} {[%emt 00:00:02]} 52.
Kg4 {[%clk 00:00:10]} {[%emt 00:00:02]} Kxh7 {[%clk 00:00:13]} 53. f5 {[%clk
00:00:12]} Kg7 {[%clk 00:00:14]} {[%emt 00:00:01]} 54. Kf4 {[%clk 00:00:13]}
Bd2+ {[%clk 00:00:14]} {[%emt 00:00:03]} 55. Kg4 {[%clk 00:00:14]} Bc3 {[%clk
00:00:15]} {[%emt 00:00:01]} 56. Kh5 {[%clk 00:00:09]} {[%emt 00:00:06]} Bd4
{[%clk 00:00:07]} {[%emt 00:00:10]} 57. Bb4 {[%clk 00:00:06]} {[%emt 00:00:06]}
Bb2 {[%clk 00:00:07]} {[%emt 00:00:01]} 58. Be7 {[%clk 00:00:04]} {[%emt
00:00:04]} a3 {[%clk 00:00:07]} {[%emt 00:00:02]} 59. f6+ {[%clk 00:00:05]} Kf7
{[%clk 00:00:03]} {[%emt 00:00:06]} 60. g6+ {[%clk 00:00:06]} {[%emt 00:00:01]}
Ke6 {[%clk 00:00:03]} {[%emt 00:00:02]} 61. Bxa3 {[%clk 00:00:03]} {[%emt
00:00:05]} Bxf6 {[%clk 00:00:04]} {[%emt 00:00:02]} 62. Kh6 {[%clk 00:00:04]}
{[%emt 00:00:01]} Kf5 {[%clk 00:00:04]} {[%emt 00:00:02]} 63. Kh7 {[%clk
00:00:05]} {[%emt 00:00:01]} Kg5 {[%clk 00:00:04]} {[%emt 00:00:01]} 64. Be7
{[%clk 00:00:05]} {[%emt 00:00:02]} Bxe7 {[%clk 00:00:03]} {[%emt 00:00:03]} 65.
g7 {[%clk 00:00:06]} Kf5 {[%clk 00:00:04]} {[%emt 00:00:02]} 66. g8=Q {[%clk
00:00:07]} {[%emt 00:00:01]} Bf6 {[%clk 00:00:05]} {[%emt 00:00:01]} 67. Qd5+
{[%clk 00:00:08]} Kf4 {[%clk 00:00:07]} {[%emt 00:00:01]} 68. Kh6 {[%clk
00:00:09]} {[%emt 00:00:01]} Be5 {[%clk 00:00:08]} 69. Kg6 {[%clk 00:00:10]}
Bb2 {[%clk 00:00:04]} {[%emt 00:00:05]} 70. Qd2+ {[%clk 00:00:11]} {[%emt
00:00:02]} 1-0

[Event "SM-blixten 2025"]
[Site "Uppsala, Sweden"]
[Date "2025.07.03"]
[Round "7.2"]
[White "Malmstig, Erik"]
[Black "Carlsson, Ludvig"]
[Result "1-0"]
[TimeControl "3 min + 2 sec increment starting from move 1"]
[WhiteTitle "FM"]
[BlackTitle "IM"]
[WhiteElo "2231"]
[BlackElo "2386"]

1. d4 {[%clk 00:03:03]} Nf6 {[%clk 00:03:03]} {[%emt 00:00:02]} 2. c4 {[%clk
00:03:04]} {[%emt 00:00:01]} c5 {[%clk 00:03:04]} 3. d5 {[%clk 00:03:05]}
{[%emt 00:00:01]} d6 {[%clk 00:03:06]} 4. Nc3 {[%clk 00:03:06]} g6 {[%clk
00:03:07]} {[%emt 00:00:01]} 5. e4 {[%clk 00:03:07]} Bg7 {[%clk 00:03:08]} 6.
Nf3 {[%clk 00:03:08]} {[%emt 00:00:01]} O-O {[%clk 00:03:08]} {[%emt 00:00:02]}
7. Bd3 {[%clk 00:03:08]} {[%emt 00:00:02]} e6 {[%clk 00:03:09]} {[%emt
00:00:01]} 8. h3 {[%clk 00:03:08]} {[%emt 00:00:02]} exd5 {[%clk 00:03:10]}
{[%emt 00:00:02]} 9. cxd5 {[%clk 00:03:09]} a6 {[%clk 00:03:11]} {[%emt
00:00:02]} 10. O-O {[%clk 00:03:10]} {[%emt 00:00:01]} Nbd7 {[%clk 00:03:10]}
{[%emt 00:00:03]} 11. Bf4 {[%clk 00:03:09]} {[%emt 00:00:02]} Ne8 {[%clk
00:03:10]} {[%emt 00:00:02]} 12. Re1 {[%clk 00:03:09]} {[%emt 00:00:02]} Ne5
{[%clk 00:03:09]} {[%emt 00:00:03]} 13. Nxe5 {[%clk 00:03:07]} {[%emt
00:00:04]} dxe5 {[%clk 00:03:10]} {[%emt 00:00:02]} 14. Be3 {[%clk 00:03:08]}
b6 {[%clk 00:03:09]} {[%emt 00:00:03]} 15. a3 {[%clk 00:02:58]} {[%emt
00:00:12]} Nd6 {[%clk 00:03:09]} {[%emt 00:00:01]} 16. Rc1 {[%clk 00:02:57]}
{[%emt 00:00:03]} f5 {[%clk 00:03:07]} {[%emt 00:00:05]} 17. f3 {[%clk
00:02:53]} {[%emt 00:00:06]} f4 {[%clk 00:03:03]} {[%emt 00:00:06]} 18. Bf2
{[%clk 00:02:52]} {[%emt 00:00:02]} Bf6 {[%clk 00:03:03]} {[%emt 00:00:02]} 19.
Qe2 {[%clk 00:02:50]} {[%emt 00:00:04]} Bh4 {[%clk 00:02:59]} {[%emt 00:00:07]}
20. Nd1 {[%clk 00:02:43]} {[%emt 00:00:09]} Bxf2+ {[%clk 00:02:50]} {[%emt
00:00:11]} 21. Nxf2 {[%clk 00:02:43]} {[%emt 00:00:01]} Bd7 {[%clk 00:02:47]}
{[%emt 00:00:05]} 22. b4 {[%clk 00:02:44]} {[%emt 00:00:02]} cxb4 {[%clk
00:02:46]} {[%emt 00:00:03]} 23. axb4 {[%clk 00:02:45]} {[%emt 00:00:01]} a5
{[%clk 00:02:45]} {[%emt 00:00:03]} 24. bxa5 {[%clk 00:02:38]} {[%emt
00:00:08]} bxa5 {[%clk 00:02:46]} {[%emt 00:00:01]} 25. Qb2 {[%clk 00:02:25]}
{[%emt 00:00:16]} Re8 {[%clk 00:02:40]} {[%emt 00:00:07]} 26. Qa3 {[%clk
00:02:18]} {[%emt 00:00:09]} Qf6 {[%clk 00:02:07]} {[%emt 00:00:35]} 27. Rc7
{[%clk 00:02:15]} {[%emt 00:00:06]} Red8 {[%clk 00:02:08]} {[%emt 00:00:01]} 28.
Qc3 {[%clk 00:02:08]} {[%emt 00:00:09]} a4 {[%clk 00:02:06]} {[%emt 00:00:03]}
29. Ra1 {[%clk 00:02:05]} {[%emt 00:00:05]} Be8 {[%clk 00:02:00]} {[%emt
00:00:08]} 30. Ng4 {[%clk 00:02:05]} {[%emt 00:00:02]} Qf8 {[%clk 00:01:22]}
{[%emt 00:00:40]} 31. Qxe5 {[%clk 00:02:02]} {[%emt 00:00:06]} Nf7 {[%clk
00:01:23]} {[%emt 00:00:01]} 32. Qd4 {[%clk 00:01:48]} {[%emt 00:00:15]} Qg7
{[%clk 00:01:20]} {[%emt 00:00:05]} 33. e5 {[%clk 00:01:47]} {[%emt 00:00:04]}
Rac8 {[%clk 00:01:05]} {[%emt 00:00:17]} 34. Rxc8 {[%clk 00:01:29]} {[%emt
00:00:19]} Rxc8 {[%clk 00:01:06]} 35. d6 {[%clk 00:01:27]} {[%emt 00:00:04]}
Rd8 {[%clk 00:01:01]} {[%emt 00:00:08]} 36. Nf6+ {[%clk 00:01:14]} {[%emt
00:00:14]} Kh8 {[%clk 00:01:01]} {[%emt 00:00:02]} 37. Nxe8 {[%clk 00:01:12]}
{[%emt 00:00:04]} Rxe8 {[%clk 00:01:02]} {[%emt 00:00:01]} 38. d7 {[%clk
00:01:10]} {[%emt 00:00:05]} Rd8 {[%clk 00:01:03]} 39. Re1 {[%clk 00:01:04]}
{[%emt 00:00:09]} a3 {[%clk 00:01:04]} {[%emt 00:00:01]} 40. Qd5 {[%clk
00:00:58]} {[%emt 00:00:07]} a2 {[%clk 00:01:03]} {[%emt 00:00:04]} 41. Qxa2
{[%clk 00:00:37]} {[%emt 00:00:23]} Nxe5 {[%clk 00:01:04]} 42. Bb5 {[%clk
00:00:38]} {[%emt 00:00:01]} Nxd7 {[%clk 00:01:01]} {[%emt 00:00:04]} 43. Qd5
{[%clk 00:00:34]} {[%emt 00:00:06]} Qf6 {[%clk 00:00:24]} {[%emt 00:00:40]} 44.
Bxd7 {[%clk 00:00:21]} {[%emt 00:00:15]} Qc3 {[%clk 00:00:24]} {[%emt
00:00:01]} 45. Rd1 {[%clk 00:00:19]} {[%emt 00:00:05]} Qe3+ {[%clk 00:00:13]}
{[%emt 00:00:12]} 46. Kh1 {[%clk 00:00:19]} {[%emt 00:00:03]} Kg7 {[%clk
00:00:11]} {[%emt 00:00:04]} 47. Qd6 {[%clk 00:00:18]} {[%emt 00:00:04]} Kh6
{[%clk 00:00:10]} {[%emt 00:00:03]} 48. Qf6 {[%clk 00:00:09]} {[%emt 00:00:10]}
Kh5 {[%clk 00:00:03]} {[%emt 00:00:10]} 49. Bg4+ {[%clk 00:00:08]} {[%emt
00:00:03]} Kh6 {[%clk 00:00:03]} {[%emt 00:00:01]} 50. Qxd8 {[%clk 00:00:09]}
{[%emt 00:00:02]} 1-0